[Event "Titled Tuesday Blitz May 30 Early 2023"]
[White "Levitskiy, Andrey"]
[Black "Asis Gargatagli, Hipolito"]
[WhiteFideId "14132885"]
[BlackFideId "2260735"]
[WhiteElo "2347"]
[BlackElo "2557"]
[Result "0-1"]
[Round "06"]
[TimeControl "180+2"]
[Date "2023.05.30"]
[WhiteClock "0:00:00"]
[BlackClock "0:01:05"]

1. e4 {[%clk 0:02:49]}  c5 {[%clk 0:02:59]} 2. Nf3 {[%clk 0:02:47]}  d6 {[%clk 0:03:00]} 3. d4 {[%clk 0:02:48]}  cxd4 {[%clk 0:03:00]} 4. Nxd4 {[%clk 0:02:49]}  Nf6 {[%clk 0:03:00]} 5. Nc3 {[%clk 0:02:49]}  a6 {[%clk 0:03:01]} 6. h3 {[%clk 0:02:48]}  e5 {[%clk 0:03:00]} 7. Nde2 {[%clk 0:02:49]}  h5 {[%clk 0:03:00]} 8. Bg5 {[%clk 0:02:49]}  Be6 {[%clk 0:02:59]} 9. Bxf6 {[%clk 0:02:49]}  Qxf6 {[%clk 0:03:00]} 10. Nd5 {[%clk 0:02:50]}  Qd8 {[%clk 0:03:01]} 11. Nec3 {[%clk 0:02:51]}  g6 {[%clk 0:02:56]} 12. a4 {[%clk 0:02:51]}  Nc6 {[%clk 0:02:56]} 13. Bd3 {[%clk 0:02:39]}  Bh6 {[%clk 0:02:55]} 14. O-O {[%clk 0:02:36]}  O-O {[%clk 0:02:55]} 15. b4 {[%clk 0:02:31]}  Rc8 {[%clk 0:02:46]} 16. Ra3 {[%clk 0:02:26]}  Ne7 {[%clk 0:02:40]} 17. Be2 {[%clk 0:01:02]}  Bxd5 {[%clk 0:02:31]} 18. Nxd5 {[%clk 0:01:03]}  Nxd5 {[%clk 0:02:31]} 19. Qxd5 {[%clk 0:00:55]}  Rxc2 {[%clk 0:02:30]} 20. Bd1 {[%clk 0:00:52]}  Rc7 {[%clk 0:02:02]} 21. Rd3 {[%clk 0:00:52]}  Rd7 {[%clk 0:02:02]} 22. Bb3 {[%clk 0:00:49]}  Kg7 {[%clk 0:01:58]} 23. Rfd1 {[%clk 0:00:48]}  Qb6 {[%clk 0:01:55]} 24. b5 {[%clk 0:00:31]}  Rc8 {[%clk 0:01:37]} 25. Rf3 {[%clk 0:00:26]}  Bf4 {[%clk 0:01:37]} 26. g3 {[%clk 0:00:23]}  Rc5 {[%clk 0:01:37]} 27. Qd3 {[%clk 0:00:22]}  Bg5 {[%clk 0:01:29]} 28. h4 {[%clk 0:00:20]}  Bh6 {[%clk 0:01:27]} 29. Bc4 {[%clk 0:00:13]}  Qc7 {[%clk 0:01:20]} 30. Bd5 {[%clk 0:00:10]}  Qa5 {[%clk 0:01:16]} 31. Qb3 {[%clk 0:00:03]}  axb5 {[%clk 0:01:16]} 32. Bxf7 {[%clk 0:00:03]}  Qxa4 {[%clk 0:01:05]} 33. Qe6 {[%clk 0:00:03]}  Qxd1+ {[%clk 0:01:05]} 34. Kg2 {[%clk 0:00:03]}  Qxf3+ {[%clk 0:01:06]} 35. Kxf3 {[%clk 0:00:04]}  Rxf7+ {[%clk 0:01:06]} 36. Kg2 {[%clk 0:00:00]}  Rc2 {[%clk 0:01:05]} 0-1


[Site "https://www.chess.com"]

[Event "Titled Tuesday Blitz May 30 Early 2023"]
[White "Agibileg, Uurtsaikh"]
[Black "Fier, Alexandr"]
[WhiteFideId "4901606"]
[BlackFideId "2107139"]
[WhiteElo "2353"]
[BlackElo "2610"]
[Result "1-0"]
[Round "06"]
[TimeControl "180+2"]
[Date "2023.05.30"]
[WhiteClock "0:00:10"]
[BlackClock "0:00:04"]

1. d4 {[%clk 0:03:00]}  Nf6 {[%clk 0:02:59]} 2. c4 {[%clk 0:03:01]}  c5 {[%clk 0:02:59]} 3. d5 {[%clk 0:03:01]}  e6 {[%clk 0:03:00]} 4. Nc3 {[%clk 0:03:00]}  exd5 {[%clk 0:03:01]} 5. cxd5 {[%clk 0:03:01]}  d6 {[%clk 0:03:01]} 6. e4 {[%clk 0:03:01]}  g6 {[%clk 0:03:01]} 7. h3 {[%clk 0:03:01]}  Bg7 {[%clk 0:03:02]} 8. Nf3 {[%clk 0:03:02]}  Nbd7 {[%clk 0:02:58]} 9. Bd3 {[%clk 0:03:01]}  a6 {[%clk 0:02:58]} 10. a4 {[%clk 0:03:01]}  Nh5 {[%clk 0:02:59]} 11. O-O {[%clk 0:03:01]}  Ne5 {[%clk 0:02:59]} 12. Be2 {[%clk 0:03:01]}  Nxf3+ {[%clk 0:02:59]} 13. Bxf3 {[%clk 0:03:01]}  Qh4 {[%clk 0:02:59]} 14. Bxh5 {[%clk 0:02:54]}  gxh5 {[%clk 0:02:58]} 15. f4 {[%clk 0:02:26]}  Bxh3 {[%clk 0:02:55]} 16. Qe1 {[%clk 0:02:25]}  Bd4+ {[%clk 0:02:51]} 17. Kh2 {[%clk 0:02:25]}  Qxe1 {[%clk 0:02:46]} 18. Rxe1 {[%clk 0:02:26]}  Bg4 {[%clk 0:02:46]} 19. Be3 {[%clk 0:02:19]}  Kd7 {[%clk 0:02:45]} 20. a5 {[%clk 0:02:14]}  Rhe8 {[%clk 0:02:43]} 21. Bxd4 {[%clk 0:02:05]}  cxd4 {[%clk 0:02:42]} 22. Na4 {[%clk 0:02:03]}  Rad8 {[%clk 0:02:39]} 23. Ra3 {[%clk 0:01:50]}  Ke7 {[%clk 0:02:24]} 24. Rd3 {[%clk 0:01:46]}  Rc8 {[%clk 0:02:23]} 25. Rxd4 {[%clk 0:01:41]}  Rc2 {[%clk 0:02:24]} 26. Rb4 {[%clk 0:01:26]}  Bf3 {[%clk 0:02:06]} 27. Kg3 {[%clk 0:01:23]}  Bxg2 {[%clk 0:02:01]} 28. Rxb7+ {[%clk 0:01:23]}  Kf6 {[%clk 0:02:01]} 29. e5+ {[%clk 0:01:16]}  Kg6 {[%clk 0:01:56]} 30. Rb6 {[%clk 0:01:11]}  Rg8 {[%clk 0:01:55]} 31. Rxd6+ {[%clk 0:01:07]}  Kf5+ {[%clk 0:01:54]} 32. Kh4 {[%clk 0:01:07]}  Rg6 {[%clk 0:01:15]} 33. Rxg6 {[%clk 0:00:53]}  hxg6 {[%clk 0:01:16]} 34. e6 {[%clk 0:00:51]}  fxe6 {[%clk 0:00:57]} 35. dxe6 {[%clk 0:00:49]}  Bc6 {[%clk 0:00:58]} 36. Nc3 {[%clk 0:00:44]}  Kxf4 {[%clk 0:00:53]} 37. Rf1+ {[%clk 0:00:43]}  Ke5 {[%clk 0:00:34]} 38. e7 {[%clk 0:00:43]}  Kd6 {[%clk 0:00:35]} 39. Rf6+ {[%clk 0:00:43]}  Kxe7 {[%clk 0:00:31]} 40. Rxc6 {[%clk 0:00:44]}  Rxb2 {[%clk 0:00:28]} 41. Rxg6 {[%clk 0:00:32]}  Rh2+ {[%clk 0:00:28]} 42. Kg3 {[%clk 0:00:28]}  Rc2 {[%clk 0:00:29]} 43. Nd5+ {[%clk 0:00:27]}  Kd7 {[%clk 0:00:26]} 44. Rxa6 {[%clk 0:00:27]}  Kc8 {[%clk 0:00:25]} 45. Ra7 {[%clk 0:00:21]}  Kb8 {[%clk 0:00:25]} 46. Ra6 {[%clk 0:00:20]}  Ra2 {[%clk 0:00:23]} 47. Kh4 {[%clk 0:00:18]}  Rc2 {[%clk 0:00:22]} 48. Rb6+ {[%clk 0:00:16]}  Ka7 {[%clk 0:00:21]} 49. Nb4 {[%clk 0:00:16]}  Rc4+ {[%clk 0:00:19]} 50. Kh3 {[%clk 0:00:16]}  Ka8 {[%clk 0:00:08]} 51. Nc6 {[%clk 0:00:13]}  Rh4+ {[%clk 0:00:09]} 52. Kg3 {[%clk 0:00:14]}  Rg4+ {[%clk 0:00:10]} 53. Kf3 {[%clk 0:00:13]}  Rg8 {[%clk 0:00:11]} 54. a6 {[%clk 0:00:10]}  h4 {[%clk 0:00:04]} 55. a7 {[%clk 0:00:10]} 1-0


[Site "https://www.chess.com"]

[Event "Titled Tuesday Blitz May 30 Early 2023"]
[White "Ilamparthi A R"]
[Black "iHateNAJDORF"]
[WhiteFideId "45015775"]
[WhiteElo "2348"]
[BlackElo "2614"]
[Result "1-0"]
[Round "06"]
[TimeControl "180+2"]
[Date "2023.05.30"]
[WhiteClock "0:00:17"]
[BlackClock "0:00:01"]

1. e4 {[%clk 0:03:00]}  c5 {[%clk 0:02:59]} 2. Nf3 {[%clk 0:03:00]}  Nc6 {[%clk 0:02:59]} 3. d3 {[%clk 0:03:00]}  Nf6 {[%clk 0:02:59]} 4. g3 {[%clk 0:03:00]}  g6 {[%clk 0:02:58]} 5. Bg2 {[%clk 0:02:59]}  Bg7 {[%clk 0:02:58]} 6. O-O {[%clk 0:02:58]}  O-O {[%clk 0:02:59]} 7. Re1 {[%clk 0:02:57]}  d5 {[%clk 0:02:49]} 8. exd5 {[%clk 0:02:58]}  Nxd5 {[%clk 0:02:48]} 9. Nbd2 {[%clk 0:02:57]}  b6 {[%clk 0:02:45]} 10. Ne4 {[%clk 0:02:53]}  Bb7 {[%clk 0:02:44]} 11. h4 {[%clk 0:02:52]}  Qc7 {[%clk 0:02:28]} 12. h5 {[%clk 0:02:49]}  Rad8 {[%clk 0:02:27]} 13. c3 {[%clk 0:02:42]}  Ba6 {[%clk 0:02:15]} 14. hxg6 {[%clk 0:02:19]}  hxg6 {[%clk 0:02:14]} 15. Nfg5 {[%clk 0:02:19]}  Nf6 {[%clk 0:02:06]} 16. Bf4 {[%clk 0:02:15]}  Qc8 {[%clk 0:02:04]} 17. Nxf6+ {[%clk 0:02:15]}  exf6 {[%clk 0:02:05]} 18. Ne4 {[%clk 0:02:14]}  Rxd3 {[%clk 0:01:50]} 19. Qa4 {[%clk 0:02:10]}  Ne5 {[%clk 0:01:35]} 20. Nxf6+ {[%clk 0:01:44]}  Bxf6 {[%clk 0:01:36]} 21. Bxe5 {[%clk 0:01:44]}  Bxe5 {[%clk 0:01:31]} 22. Rxe5 {[%clk 0:01:45]}  Bb7 {[%clk 0:01:31]} 23. Rae1 {[%clk 0:01:38]}  Bxg2 {[%clk 0:01:19]} 24. Kxg2 {[%clk 0:01:39]}  Qd7 {[%clk 0:01:16]} 25. Qe4 {[%clk 0:01:35]}  Kg7 {[%clk 0:00:49]} 26. Re7 {[%clk 0:01:22]}  Qd5 {[%clk 0:00:48]} 27. Qxd5 {[%clk 0:01:22]}  Rxd5 {[%clk 0:00:49]} 28. Rxa7 {[%clk 0:01:22]}  Rd2 {[%clk 0:00:49]} 29. b4 {[%clk 0:01:18]}  Rd3 {[%clk 0:00:33]} 30. bxc5 {[%clk 0:01:04]}  bxc5 {[%clk 0:00:34]} 31. Re3 {[%clk 0:00:59]}  Rfd8 {[%clk 0:00:28]} 32. Rae7 {[%clk 0:00:35]}  c4 {[%clk 0:00:20]} 33. Rf3 {[%clk 0:00:26]}  Rxf3 {[%clk 0:00:14]} 34. Kxf3 {[%clk 0:00:27]}  Rd2 {[%clk 0:00:14]} 35. Re4 {[%clk 0:00:22]}  Rxa2 {[%clk 0:00:10]} 36. Rxc4 {[%clk 0:00:22]}  Kf6 {[%clk 0:00:11]} 37. Rc6+ {[%clk 0:00:22]}  Kg5 {[%clk 0:00:10]} 38. c4 {[%clk 0:00:22]}  Rc2 {[%clk 0:00:09]} 39. Rc7 {[%clk 0:00:21]}  f5 {[%clk 0:00:08]} 40. c5 {[%clk 0:00:22]}  Rc4 {[%clk 0:00:08]} 41. c6 {[%clk 0:00:21]}  Rc3+ {[%clk 0:00:08]} 42. Kg2 {[%clk 0:00:21]}  Kg4 {[%clk 0:00:09]} 43. Rc8 {[%clk 0:00:20]}  Rc2 {[%clk 0:00:07]} 44. c7 {[%clk 0:00:18]}  g5 {[%clk 0:00:07]} 45. Rh8 {[%clk 0:00:17]}  Rxc7 {[%clk 0:00:01]} 46. f3# {[%clk 0:00:17]} 1-0


[Site "https://www.chess.com"]

[Event "Titled Tuesday Blitz May 30 Early 2023"]
[White "Miranda, Rafael"]
[Black "Papasimakopoulos, Alexandros"]
[WhiteFideId "130990"]
[BlackFideId "4244125"]
[WhiteElo "2204"]
[BlackElo "2359"]
[Result "0-1"]
[Round "06"]
[TimeControl "180+2"]
[Date "2023.05.30"]
[WhiteClock "0:00:24"]
[BlackClock "0:00:40"]

1. e4 {[%clk 0:03:00]}  e6 {[%clk 0:02:49]} 2. d4 {[%clk 0:03:00]}  d5 {[%clk 0:02:49]} 3. Nd2 {[%clk 0:03:01]}  Nf6 {[%clk 0:02:49]} 4. e5 {[%clk 0:03:01]}  Nfd7 {[%clk 0:02:50]} 5. Bd3 {[%clk 0:03:01]}  c5 {[%clk 0:02:50]} 6. c3 {[%clk 0:03:02]}  b5 {[%clk 0:02:51]} 7. Ne2 {[%clk 0:03:02]}  b4 {[%clk 0:02:51]} 8. O-O {[%clk 0:03:01]}  bxc3 {[%clk 0:02:50]} 9. bxc3 {[%clk 0:03:02]}  Ba6 {[%clk 0:02:50]} 10. Bxa6 {[%clk 0:03:02]}  Nxa6 {[%clk 0:02:51]} 11. Qa4 {[%clk 0:02:58]}  Nb8 {[%clk 0:02:49]} 12. c4 {[%clk 0:02:58]}  dxc4 {[%clk 0:02:37]} 13. Nxc4 {[%clk 0:02:57]}  Be7 {[%clk 0:02:36]} 14. dxc5 {[%clk 0:02:55]}  O-O {[%clk 0:02:32]} 15. Rd1 {[%clk 0:02:52]}  Nxc5 {[%clk 0:02:22]} 16. Qc2 {[%clk 0:02:27]}  Qc7 {[%clk 0:02:12]} 17. Be3 {[%clk 0:02:24]}  Ncd7 {[%clk 0:02:06]} 18. Rac1 {[%clk 0:02:22]}  Na6 {[%clk 0:01:54]} 19. f4 {[%clk 0:02:12]}  Nb4 {[%clk 0:01:50]} 20. Qa4 {[%clk 0:02:07]}  Bc5 {[%clk 0:01:40]} 21. Rxd7 {[%clk 0:02:03]}  Qc8 {[%clk 0:01:34]} 22. Kh1 {[%clk 0:01:50]}  Nd5 {[%clk 0:01:32]} 23. Rxd5 {[%clk 0:01:34]}  exd5 {[%clk 0:01:23]} 24. Nd6 {[%clk 0:01:35]}  Qg4 {[%clk 0:01:22]} 25. Bxc5 {[%clk 0:01:30]}  Qxe2 {[%clk 0:01:22]} 26. Qb3 {[%clk 0:01:28]}  Rab8 {[%clk 0:01:08]} 27. Qxd5 {[%clk 0:01:27]}  Rb2 {[%clk 0:01:08]} 28. h3 {[%clk 0:01:27]}  h5 {[%clk 0:01:07]} 29. Bg1 {[%clk 0:01:25]}  Rxa2 {[%clk 0:01:05]} 30. f5 {[%clk 0:01:20]}  Rd2 {[%clk 0:01:04]} 31. Bd4 {[%clk 0:01:02]}  Qd3 {[%clk 0:00:56]} 32. Rc4 {[%clk 0:00:30]}  h4 {[%clk 0:00:41]} 33. e6 {[%clk 0:00:23]}  Rd1+ {[%clk 0:00:40]} 34. Kh2 {[%clk 0:00:24]}  Qg3# {[%clk 0:00:40]} 0-1


[Site "https://www.chess.com"]

[Event "Titled Tuesday Blitz May 30 Early 2023"]
[White "Simonian, Hrair"]
[Black "Uzcategui Rodriguez, Alejandro"]
[WhiteFideId "13302337"]
[BlackFideId "3903400"]
[WhiteElo "2447"]
[BlackElo "2252"]
[Result "1-0"]
[Round "06"]
[TimeControl "180+2"]
[Date "2023.05.30"]
[WhiteClock "0:02:53"]
[BlackClock "0:02:10"]

1. e4 {[%clk 0:03:00]}  d6 {[%clk 0:02:58]} 2. d4 {[%clk 0:03:00]}  Nf6 {[%clk 0:02:59]} 3. Nc3 {[%clk 0:02:59]}  e5 {[%clk 0:02:57]} 4. Nf3 {[%clk 0:02:59]}  Nbd7 {[%clk 0:02:57]} 5. Bc4 {[%clk 0:03:00]}  Be7 {[%clk 0:02:57]} 6. dxe5 {[%clk 0:03:00]}  dxe5 {[%clk 0:02:57]} 7. Bxf7+ {[%clk 0:03:00]}  Kxf7 {[%clk 0:02:56]} 8. Ng5+ {[%clk 0:03:00]}  Kg6 {[%clk 0:02:33]} 9. Ne6 {[%clk 0:03:01]}  Qg8 {[%clk 0:02:27]} 10. f4 {[%clk 0:03:01]}  h6 {[%clk 0:02:18]} 11. f5+ {[%clk 0:03:00]}  Kh7 {[%clk 0:02:18]} 12. g4 {[%clk 0:02:56]}  Nf8 {[%clk 0:02:12]} 13. g5 {[%clk 0:02:52]}  Nxe6 {[%clk 0:02:10]} 14. g6# {[%clk 0:02:53]} 1-0


[Site "https://www.chess.com"]

[Event "Titled Tuesday Blitz May 30 Early 2023"]
[White "Vakhlamov, Igor L."]
[Black "Schuh, Karsten"]
[WhiteFideId "24126748"]
[BlackFideId "4637950"]
[WhiteElo "2407"]
[BlackElo "2138"]
[Result "1-0"]
[Round "06"]
[TimeControl "180+2"]
[Date "2023.05.30"]
[WhiteClock "0:00:03"]
[BlackClock "0:00:00"]

1. e4 {[%clk 0:03:00]}  c5 {[%clk 0:02:59]} 2. Nf3 {[%clk 0:03:00]}  Nc6 {[%clk 0:03:00]} 3. Nc3 {[%clk 0:03:00]}  e6 {[%clk 0:02:59]} 4. d4 {[%clk 0:02:59]}  cxd4 {[%clk 0:02:59]} 5. Nxd4 {[%clk 0:03:00]}  Qc7 {[%clk 0:03:00]} 6. Nxc6 {[%clk 0:02:57]}  bxc6 {[%clk 0:02:59]} 7. Qf3 {[%clk 0:02:55]}  Nf6 {[%clk 0:02:58]} 8. Qg3 {[%clk 0:02:55]}  Qxg3 {[%clk 0:02:55]} 9. hxg3 {[%clk 0:02:56]}  Bb4 {[%clk 0:02:54]} 10. f3 {[%clk 0:02:53]}  d5 {[%clk 0:02:50]} 11. exd5 {[%clk 0:02:26]}  cxd5 {[%clk 0:02:48]} 12. Bd2 {[%clk 0:02:26]}  O-O {[%clk 0:02:43]} 13. Bd3 {[%clk 0:02:25]}  h6 {[%clk 0:02:36]} 14. a3 {[%clk 0:02:24]}  Bd6 {[%clk 0:02:31]} 15. g4 {[%clk 0:02:23]}  Rb8 {[%clk 0:02:14]} 16. O-O-O {[%clk 0:02:11]}  Bd7 {[%clk 0:01:59]} 17. g5 {[%clk 0:02:09]}  hxg5 {[%clk 0:01:55]} 18. Bxg5 {[%clk 0:02:10]}  Rfc8 {[%clk 0:01:55]} 19. Rh4 {[%clk 0:01:48]}  Kf8 {[%clk 0:01:46]} 20. Re1 {[%clk 0:01:26]}  Bxa3 {[%clk 0:01:14]} 21. Rh8+ {[%clk 0:01:04]}  Ke7 {[%clk 0:01:09]} 22. Nxd5+ {[%clk 0:01:05]}  Kd6 {[%clk 0:01:05]} 23. Rxc8 {[%clk 0:01:05]}  Bxb2+ {[%clk 0:00:58]} 24. Kb1 {[%clk 0:01:05]}  Bxc8 {[%clk 0:00:51]} 25. Bf4+ {[%clk 0:00:36]}  e5 {[%clk 0:00:45]} 26. Nxf6 {[%clk 0:00:34]}  gxf6 {[%clk 0:00:40]} 27. Bd2 {[%clk 0:00:34]}  Be6 {[%clk 0:00:17]} 28. Re4 {[%clk 0:00:15]}  Bd4+ {[%clk 0:00:13]} 29. Kc1 {[%clk 0:00:15]}  f5 {[%clk 0:00:13]} 30. Rh4 {[%clk 0:00:15]}  f4 {[%clk 0:00:08]} 31. c3 {[%clk 0:00:11]}  Bf2 {[%clk 0:00:05]} 32. Rh1 {[%clk 0:00:09]}  a5 {[%clk 0:00:05]} 33. Kc2 {[%clk 0:00:10]}  Bb3+ {[%clk 0:00:04]} 34. Kb2 {[%clk 0:00:09]}  a4 {[%clk 0:00:04]} 35. Ra1 {[%clk 0:00:07]}  Bc5 {[%clk 0:00:04]} 36. Bc2 {[%clk 0:00:04]}  a3+ {[%clk 0:00:02]} 37. Kc1 {[%clk 0:00:04]}  Bc4 {[%clk 0:00:00]} 38. Kd1 {[%clk 0:00:03]} 1-0


[Site "https://www.chess.com"]

[Event "Titled Tuesday Blitz May 30 Early 2023"]
[White "Molina, Roberto Junio Brito"]
[Black "Sousa, Andre Ventura"]
[WhiteFideId "2109450"]
[BlackFideId "1917617"]
[WhiteElo "2376"]
[BlackElo "2333"]
[Result "1/2-1/2"]
[Round "06"]
[TimeControl "180+2"]
[Date "2023.05.30"]
[WhiteClock "0:00:08"]
[BlackClock "0:00:14"]

1. d4 {[%clk 0:03:00]}  Nf6 {[%clk 0:03:00]} 2. c4 {[%clk 0:03:00]}  e6 {[%clk 0:03:00]} 3. Nf3 {[%clk 0:03:00]}  Bb4+ {[%clk 0:03:00]} 4. Bd2 {[%clk 0:03:00]}  Qe7 {[%clk 0:02:59]} 5. g3 {[%clk 0:02:59]}  Nc6 {[%clk 0:02:59]} 6. Bg2 {[%clk 0:02:57]}  Bxd2+ {[%clk 0:02:59]} 7. Nbxd2 {[%clk 0:02:55]}  d6 {[%clk 0:02:58]} 8. O-O {[%clk 0:02:54]}  e5 {[%clk 0:02:58]} 9. d5 {[%clk 0:02:51]}  Nb8 {[%clk 0:02:56]} 10. e4 {[%clk 0:02:51]}  a5 {[%clk 0:02:54]} 11. Ne1 {[%clk 0:02:51]}  Na6 {[%clk 0:02:54]} 12. Nd3 {[%clk 0:02:50]}  O-O {[%clk 0:02:53]} 13. h3 {[%clk 0:02:46]}  Nd7 {[%clk 0:02:45]} 14. a3 {[%clk 0:02:38]}  Ndc5 {[%clk 0:02:42]} 15. Nxc5 {[%clk 0:02:36]}  Nxc5 {[%clk 0:02:43]} 16. b4 {[%clk 0:02:36]}  axb4 {[%clk 0:02:43]} 17. axb4 {[%clk 0:02:36]}  Rxa1 {[%clk 0:02:44]} 18. Qxa1 {[%clk 0:02:37]}  Na6 {[%clk 0:02:44]} 19. Qc3 {[%clk 0:02:34]}  c5 {[%clk 0:02:41]} 20. dxc6 {[%clk 0:02:33]}  bxc6 {[%clk 0:02:41]} 21. Nb3 {[%clk 0:02:25]}  Be6 {[%clk 0:02:40]} 22. Na5 {[%clk 0:02:23]}  Qc7 {[%clk 0:02:31]} 23. Rb1 {[%clk 0:02:15]}  Rb8 {[%clk 0:02:28]} 24. Rb2 {[%clk 0:02:05]}  h6 {[%clk 0:02:11]} 25. Kh2 {[%clk 0:02:03]}  Rb6 {[%clk 0:02:03]} 26. Bf1 {[%clk 0:01:56]}  Rb8 {[%clk 0:01:32]} 27. Bd3 {[%clk 0:01:42]}  c5 {[%clk 0:01:31]} 28. b5 {[%clk 0:01:41]}  Nb4 {[%clk 0:01:31]} 29. Nb3 {[%clk 0:01:40]}  Ra8 {[%clk 0:01:29]} 30. Nd2 {[%clk 0:01:38]}  Qa5 {[%clk 0:01:11]} 31. Bf1 {[%clk 0:01:37]}  Qa1 {[%clk 0:01:05]} 32. Rb3 {[%clk 0:01:23]}  Qe1 {[%clk 0:01:00]} 33. Qe3 {[%clk 0:01:17]}  Qxe3 {[%clk 0:00:52]} 34. Rxe3 {[%clk 0:01:18]}  Ra2 {[%clk 0:00:52]} 35. Re2 {[%clk 0:01:12]}  Kf8 {[%clk 0:00:49]} 36. Kg2 {[%clk 0:01:10]}  Ke7 {[%clk 0:00:49]} 37. f4 {[%clk 0:01:03]}  Kd8 {[%clk 0:00:42]} 38. f5 {[%clk 0:00:59]}  Bc8 {[%clk 0:00:42]} 39. Nf3 {[%clk 0:00:48]}  Ra1 {[%clk 0:00:38]} 40. Rd2 {[%clk 0:00:40]}  Kc7 {[%clk 0:00:38]} 41. Re2 {[%clk 0:00:20]}  Bb7 {[%clk 0:00:38]} 42. Nd2 {[%clk 0:00:20]}  Ra2 {[%clk 0:00:34]} 43. Kf2 {[%clk 0:00:20]}  Nd3+ {[%clk 0:00:26]} 44. Ke3 {[%clk 0:00:20]}  Nb4 {[%clk 0:00:16]} 45. g4 {[%clk 0:00:19]}  Ra3+ {[%clk 0:00:16]} 46. Kf2 {[%clk 0:00:19]}  Rc3 {[%clk 0:00:14]} 47. Bg2 {[%clk 0:00:15]}  Nc2 {[%clk 0:00:14]} 48. Bf1 {[%clk 0:00:13]}  Nd4 {[%clk 0:00:13]} 49. Re3 {[%clk 0:00:13]}  Rc2 {[%clk 0:00:14]} 50. Ke1 {[%clk 0:00:14]}  Ra2 {[%clk 0:00:15]} 51. Rc3 {[%clk 0:00:13]}  Ra1+ {[%clk 0:00:14]} 52. Kf2 {[%clk 0:00:14]}  Ra2 {[%clk 0:00:15]} 53. Ke3 {[%clk 0:00:14]}  g6 {[%clk 0:00:15]} 54. Bd3 {[%clk 0:00:14]}  gxf5 {[%clk 0:00:15]} 55. gxf5 {[%clk 0:00:15]}  Ra1 {[%clk 0:00:16]} 56. Nf3 {[%clk 0:00:14]}  Rh1 {[%clk 0:00:15]} 57. Nd2 {[%clk 0:00:10]}  Rxh3+ {[%clk 0:00:16]} 58. Kf2 {[%clk 0:00:11]}  Rh2+ {[%clk 0:00:15]} 59. Ke3 {[%clk 0:00:11]}  Rh3+ {[%clk 0:00:14]} 60. Kf2 {[%clk 0:00:12]}  Kb6 {[%clk 0:00:14]} 61. Ra3 {[%clk 0:00:12]}  Nxf5 {[%clk 0:00:13]} 62. exf5 {[%clk 0:00:11]}  e4 {[%clk 0:00:13]} 63. Ke2 {[%clk 0:00:10]}  exd3+ {[%clk 0:00:13]} 64. Rxd3 {[%clk 0:00:10]}  Rxd3 {[%clk 0:00:13]} 65. Kxd3 {[%clk 0:00:11]}  d5 {[%clk 0:00:14]} 66. Ke3 {[%clk 0:00:06]}  Bc8 {[%clk 0:00:12]} 67. Kf4 {[%clk 0:00:05]}  dxc4 {[%clk 0:00:12]} 68. Nxc4+ {[%clk 0:00:06]}  Kc7 {[%clk 0:00:13]} 69. Ke5 {[%clk 0:00:06]}  Bd7 {[%clk 0:00:12]} 70. b6+ {[%clk 0:00:06]}  Kb7 {[%clk 0:00:13]} 71. Nd6+ {[%clk 0:00:06]}  Kxb6 {[%clk 0:00:13]} 72. Nxf7 {[%clk 0:00:07]}  Bxf5 {[%clk 0:00:14]} 73. Nxh6 {[%clk 0:00:07]}  Bg6 {[%clk 0:00:13]} 74. Ng4 {[%clk 0:00:07]}  Kb5 {[%clk 0:00:13]} 75. Ne3 {[%clk 0:00:08]}  Kb4 {[%clk 0:00:13]} 76. Kd5 {[%clk 0:00:08]}  Bf7+ {[%clk 0:00:13]} 77. Kd6 {[%clk 0:00:08]}  c4 {[%clk 0:00:14]} 78. Nxc4 {[%clk 0:00:08]} 1/2-1/2


[Site "https://www.chess.com"]

[Event "Titled Tuesday Blitz May 30 Early 2023"]
[White "Baskakov, Egor"]
[Black "Gontcharov, Vladislav"]
[WhiteFideId "24197866"]
[BlackFideId "4123492"]
[WhiteElo "2225"]
[BlackElo "2420"]
[Result "1-0"]
[Round "06"]
[TimeControl "180+2"]
[Date "2023.05.30"]
[WhiteClock "0:01:48"]
[BlackClock "0:01:07"]

1. e4 {[%clk 0:02:56]}  e6 {[%clk 0:02:58]} 2. Nc3 {[%clk 0:02:55]}  d5 {[%clk 0:02:58]} 3. g3 {[%clk 0:02:55]}  Nf6 {[%clk 0:02:52]} 4. Bg2 {[%clk 0:02:55]}  c5 {[%clk 0:02:52]} 5. Nge2 {[%clk 0:02:54]}  Nc6 {[%clk 0:02:51]} 6. exd5 {[%clk 0:02:53]}  Nxd5 {[%clk 0:02:45]} 7. Nxd5 {[%clk 0:02:52]}  exd5 {[%clk 0:02:45]} 8. d4 {[%clk 0:02:52]}  Be6 {[%clk 0:02:34]} 9. O-O {[%clk 0:02:49]}  Qd7 {[%clk 0:02:19]} 10. dxc5 {[%clk 0:02:47]}  Bxc5 {[%clk 0:02:19]} 11. Nf4 {[%clk 0:02:48]}  O-O-O {[%clk 0:02:18]} 12. c3 {[%clk 0:02:44]}  Rhe8 {[%clk 0:02:07]} 13. b4 {[%clk 0:02:41]}  Bb6 {[%clk 0:02:06]} 14. a4 {[%clk 0:02:38]}  d4 {[%clk 0:01:45]} 15. a5 {[%clk 0:02:32]}  dxc3 {[%clk 0:01:44]} 16. Qxd7+ {[%clk 0:02:30]}  Rxd7 {[%clk 0:01:39]} 17. axb6 {[%clk 0:02:31]}  a6 {[%clk 0:01:29]} 18. Nxe6 {[%clk 0:02:29]}  fxe6 {[%clk 0:01:29]} 19. Bxc6 {[%clk 0:02:10]}  bxc6 {[%clk 0:01:28]} 20. Rxa6 {[%clk 0:02:10]}  Red8 {[%clk 0:01:12]} 21. Be3 {[%clk 0:01:53]}  c2 {[%clk 0:01:10]} 22. Ra2 {[%clk 0:01:49]}  Kb7 {[%clk 0:01:07]} 23. Rxc2 {[%clk 0:01:48]} 1-0


[Site "https://www.chess.com"]